bitfinex/quotes_ETHUSD_20260302
["timestamp","ask_amount","ask_price","bid_price","bid_amount"]
[1772430046389,7.67066766,1973.9,1973.4,0.07247497]
[1772430046885,7.67066766,1973.9,1973.3,1.26691329]
[1772430047061,6.40363146,1973.8,1973.1,1.33456745]
[1772430047264,6.40363146,1973.8,1973.2,0.06069588]
[1772430048086,6.40363146,1973.6,1973.2,1.3276731]
[1772430050792,6.40363146,1973.6,1973.3,0.04236321]
[1772430052580,6.40363146,1973.6,1973.3,1.30927043]
[1772430052787,6.40363146,1973.6,1973.3,0.04236321]
[1772430052985,6.40363146,1973.6,1973.3,1.30927247]
[1772430053383,6.40363146,1973.8,1973.4,0.03073885]
[1772430055214,6.40363146,1973.8,1973.4,1.29754957]
[1772430055709,0.002,1973.6,1973.4,1.29754957]
[1772430057193,0.002,1973.6,1973.4,0.03073885]
[1772430057801,0.002,1973.6,1973.4,1.29758118]
[1772430059115,0.002,1973.6,1973.4,0.03073885]
[1772430060121,6.40563146,1973.6,1973.3,0.001]
[1772430060272,6.69924596,1973.6,1973.1,0.001]
[1772430061102,6.40313146,1973.2,1973.1,0.001]
[1772430061686,7.67010895,1973.2,1973.1,0.001]
[1772430061886,6.40313146,1973.2,1973.1,0.001]
[1772430062801,7.67010895,1973.2,1973.1,0.001]
[1772430063179,6.40313146,1973.2,1973.1,0.001]
[1772430063787,7.67010895,1973.2,1973.1,0.001]
[1772430064387,6.40313146,1973.2,1973.1,0.001]
[1772430064588,7.67010895,1973.2,1973.1,0.001]
[1772430064786,6.40313146,1973.2,1973.1,0.001]
[1772430069707,7.67010895,1973.2,1973.1,0.001]
[1772430069916,7.67210895,1973.2,1972.8,0.001]
[1772430070112,7.96572345,1973.2,1972.9,0.001]
[1772430071005,6.40513146,1973.2,1972.9,0.001]
[1772430071605,7.67211013,1973.2,1972.9,0.001]
[1772430072405,6.40513146,1973.2,1972.9,0.001]
[1772430073927,7.67211322,1973.2,1972.9,0.001]
[1772430075727,7.96572772,1973.2,1972.9,0.001]
[1772430075902,6.40213146,1972.9,1972.6,0.001]
[1772430076227,6.40413146,1973.2,1972.8,0.2936145]
[1772430076400,0.002,1973.2,1972.9,0.2936145]
[1772430076600,0.002,1973.2,1973.0,0.2936145]
[1772430076812,0.002,1973.2,1972.9,0.2936145]
[1772430077825,0.002,1973.2,1972.6,0.001]
[1772430077826,0.002,1973.2,1973.1,0.2936145]
[1772430078032,6.40413146,1973.4,1973.1,0.2936145]
[1772430078226,0.002,1973.4,1973.0,0.2936145]
[1772430078431,0.002,1973.4,1973.0,1.56068921]
[1772430079199,6.40413146,1973.4,1973.0,1.56068921]
[1772430081733,7.6709894,1973.4,1972.8,1.56082382]
[1772430082233,0.002,1973.3,1973.1,0.001]
[1772430087812,6.40413146,1973.3,1973.1,0.001]
[1772430088033,6.40413146,1973.3,1972.8,0.001]
[1772430088334,7.66910895,1973.2,1972.8,0.001]
[1772430089304,6.40213146,1973.2,1972.8,0.001]
[1772430089506,6.40213146,1973.2,1972.8,0.2946145]
[1772430089909,6.40213146,1973.2,1972.9,0.2936145]
[1772430090742,6.40213146,1973.2,1972.8,1.56179318]
[1772430091744,7.66911788,1973.2,1972.8,0.001]
[1772430092714,5.06966711,1973.3,1973.0,0.2936145]
[1772430092715,6.40413146,1973.3,1973.0,0.2936145]
[1772430092935,0.002,1973.3,1973.0,0.2936145]
[1772430093240,0.002,1973.3,1973.1,0.2936145]
[1772430093616,0.002,1973.3,1973.0,0.2936145]
[1772430096225,0.002,1973.3,1973.1,0.2936145]
[1772430098344,0.002,1973.6,1973.3,5.7897147]
[1772430098542,0.002,1973.6,1973.5,0.2936145]
[1772430100020,0.002,1973.6,1973.4,6.0833292]
[1772430100546,6.20841119,1973.6,1973.3,0.2936145]
[1772430100919,6.20641119,1973.4,1972.9,7.35149304]
[1772430101614,6.20641119,1973.4,1973.0,6.0833292]
[1772430103249,6.20641119,1973.4,1973.0,5.7897147]
[1772430103549,7.47327174,1973.4,1973.0,5.7897147]
[1772430103743,6.20641119,1973.4,1973.0,5.7897147]
[1772430104422,7.47326431,1973.4,1973.0,5.7897147]
[1772430105949,7.47326431,1973.4,1973.1,0.001]
[1772430106127,6.20641119,1973.2,1973.1,0.001]
[1772430107224,5.86174083,1973.3,1973.1,0.001]
[1772430107441,0.002,1973.6,1973.3,6.08974578]
[1772430107639,0.002,1973.6,1973.4,7.65020468]
[1772430107941,0.002,1973.6,1973.4,6.08974578]
[1772430108143,0.002,1973.6,1973.2,0.2936145]
[1772430108144,5.86174083,1973.6,1973.2,7.35669421]
[1772430109759,5.86174083,1973.6,1973.2,7.65030871]
[1772430110152,5.86174083,1973.6,1973.1,1.56160217]
[1772430110346,5.86174083,1973.6,1973.1,7.65134795]
[1772430111352,5.86174083,1973.6,1973.2,6.08974578]
[1772430111857,5.86174083,1973.6,1973.2,6.38336028]
[1772430112632,5.86174083,1973.6,1973.2,6.08974578]
[1772430113855,7.12847452,1973.6,1973.1,0.001]
[1772430114564,0.002,1973.7,1973.4,6.53023738]
[1772430114858,0.002,1973.7,1973.4,6.08974578]
[1772430115229,5.85974083,1973.6,1973.1,0.001]
[1772430115429,5.85974083,1973.1,1972.9,0.001]
[1772430116356,7.12681949,1973.1,1972.9,0.001]
[1772430117033,5.85974083,1973.1,1972.9,0.001]
[1772430117228,1.26702661,1973.2,1972.9,0.001]
[1772430117438,5.85974083,1973.2,1972.9,0.001]
[1772430118457,7.12674794,1973.2,1972.9,0.001]
[1772430118842,7.12674794,1973.2,1973.0,0.001]
[1772430119558,5.85974083,1973.2,1973.0,0.001]
[1772430120072,7.1267217,1973.2,1973.0,0.001]
[1772430121736,7.1267217,1973.2,1972.9,0.001]
[1772430125151,1.26695896,1973.3,1972.9,6.09074578]
[1772430125353,2.864,1973.4,1973.1,6.08974578]
[1772430125563,0.002,1973.5,1973.1,6.08974578]
[1772430126754,0.002,1973.5,1973.2,9.41329526]
[1772430127064,0.002,1973.8,1973.3,6.08974578]
[1772430127670,0.002,1973.8,1973.5,6.08974578]
[1772430130049,0.002,1973.8,1973.5,7.3564777]
[1772430131543,0.002,1973.7,1973.5,7.3564777]
[1772430132675,5.86327969,1974.0,1973.6,6.08974578]
[1772430133568,0.002,1974.1,1973.8,6.08974578]
[1772430133768,5.06407691,1974.7,1973.6,4.11314398]
[1772430133769,7.12582003,1974.6,1974.0,6.08974578]
[1772430141287,7.12582003,1974.6,1974.0,7.35620135]
[1772430141470,7.12582003,1974.6,1974.1,5.8742525]
[1772430141867,5.75205886,1974.8,1974.4,0.44011415]
[1772430142194,5.75205886,1974.8,1974.4,6.31436665]
[1772430143224,7.01802913,1974.8,1974.4,6.31436665]
[1772430143367,0.002,1974.5,1974.4,5.8742525]
[1772430143573,5.75405886,1974.5,1974.1,7.14159889]
[1772430144287,0.002,1974.5,1974.2,0.44011415]
[1772430144500,0.002,1974.5,1974.2,6.31436665]
[1772430145264,0.002,1974.5,1974.3,5.8742525]
[1772430147498,0.002,1974.5,1974.3,7.14050345]
[1772430149599,0.002,1974.5,1974.3,5.8742525]
[1772430149790,0.002,1974.5,1974.3,7.14052368]
[1772430151171,0.002,1974.8,1974.5,5.8742525]
[1772430151673,0.002,1974.8,1974.5,7.14034944]
[1772430152094,0.002,1974.8,1974.5,5.8742525]
[1772430154004,0.002,1974.8,1974.5,7.14039239]
[1772430154200,0.002,1974.8,1974.5,5.8742525]
[1772430154589,0.002,1974.8,1974.5,7.14038908]
[1772430154981,0.00153886,1975.0,1974.7,5.8742525]
[1772430155296,0.00153886,1975.0,1974.8,6.31436665]
[1772430155500,5.75205886,1975.7,1975.2,5.8742525]
[1772430156111,5.75205886,1975.7,1975.3,7.57999718]
[1772430156312,5.75205886,1975.9,1975.5,6.31436665]
[1772430156608,5.75359772,1976.0,1975.5,6.31436665]
[1772430157406,7.01708953,1976.3,1975.9,0.44011415]
[1772430157579,7.01708953,1976.3,1975.8,5.8742525]
[1772430157779,7.01708953,1976.3,1975.6,6.31436665]
[1772430158015,5.75205886,1976.2,1975.6,6.31436665]
[1772430158389,7.01716659,1976.2,1975.6,7.57977508]
[1772430158614,7.01716659,1976.2,1975.7,5.8742525]
[1772430159715,7.01716659,1976.2,1974.2,4.52743169]
[1772430159716,7.80248786,1976.0,1975.1,7.13996417]
[1772430160012,5.75205886,1975.9,1975.3,5.8742525]
[1772430160583,5.75205886,1975.9,1975.5,5.8742525]
[1772430160889,1.26519117,1976.0,1975.5,5.8742525]
[1772430161096,7.01721816,1976.1,1975.5,5.8742525]
[1772430161616,7.01709241,1976.3,1975.7,5.8742525]
[1772430162613,7.01709241,1976.3,1975.8,7.13956275]
[1772430162910,7.01709241,1976.3,1975.7,5.06149021]
[1772430162911,7.01709241,1976.3,1975.4,5.8742525]
[1772430163887,7.01709241,1976.3,1975.6,5.8742525]
[1772430165016,7.01709241,1976.3,1975.7,7.13962679]
[1772430165614,1.26503355,1976.3,1975.7,7.13962679]
[1772430165813,7.01709241,1976.3,1975.7,7.13962679]
[1772430166417,7.01709241,1976.3,1975.7,5.8742525]
[1772430166781,1.26503355,1976.3,1975.7,5.8742525]
[1772430166987,1.42114856,1976.4,1975.9,5.8742525]
[1772430167791,0.1561732,1976.4,1976.0,6.05105677]
[1772430168104,7.66216275,1976.7,1976.2,6.05105677]
[1772430168421,7.66216275,1976.7,1976.0,6.05105677]
[1772430168590,7.66216275,1976.7,1976.0,2.784]
[1772430168986,7.66216275,1976.7,1976.0,4.04917432]
[1772430169209,6.39741698,1976.8,1976.2,6.05105677]
[1772430169414,6.39741698,1976.8,1976.3,6.05105677]
[1772430170186,0.002,1976.5,1976.3,6.05105677]
[1772430171097,6.39895584,1977.0,1976.4,7.31598289]
[1772430171503,1.2660905,1977.0,1976.4,7.31598289]
[1772430171705,7.66350748,1977.0,1976.3,4.0489395]
[1772430172424,7.66350748,1977.0,1976.4,6.05105677]
[1772430173391,7.66349853,1977.0,1976.5,7.3159189]
[1772430173612,0.00153886,1977.0,1976.5,7.3159189]
[1772430174134,0.00153886,1977.0,1976.6,8.10148577]
[1772430174317,0.00153886,1977.0,1976.6,6.05105677]
[1772430175023,6.39741698,1976.9,1976.1,6.05105677]
[1772430175321,6.39741698,1976.5,1976.1,6.05105677]
[1772430175817,6.39741698,1976.5,1975.8,3.02728308]
[1772430176189,6.39741698,1976.5,1975.8,1.762]
[1772430176392,6.39741698,1976.5,1975.8,3.02729555]
[1772430177422,1.26492612,1976.4,1975.8,3.02729555]
[1772430177628,6.39741698,1976.3,1975.8,3.02729555]
[1772430177828,6.39741698,1976.3,1975.8,9.07835232]
[1772430178798,6.39741698,1976.3,1975.8,7.81305677]
[1772430179198,6.39741698,1976.3,1975.8,9.07835792]
[1772430179603,0.73229526,1977.6,1976.3,6.05105677]
[1772430179797,0.00153886,1980.0,1977.6,6.05105677]
[1772430180004,0.73537298,1978.9,1978.7,6.05105677]
[1772430180230,6.39741698,1979.4,1978.3,0.18685624]
[1772430180547,2.51326457,1979.7,1978.2,2.837]
[1772430180548,6.39741698,1979.6,1978.2,2.837]
[1772430180843,6.39741698,1979.2,1978.2,2.837]
[1772430181201,6.39741698,1979.2,1978.0,2.57791555]
[1772430181202,6.39741698,1979.2,1978.0,0.00153886]
[1772430181418,1.46310601,1978.8,1978.0,0.00153886]
[1772430181729,1.2634558,1978.7,1978.0,0.00153886]
[1772430182049,1.46310601,1978.4,1978.0,0.00153886]
[1772430182248,7.66087278,1978.7,1978.0,0.00153886]
[1772430182752,9.12397879,1978.7,1978.0,0.00153886]
[1772430183036,7.66087278,1978.7,1978.0,0.00153886]
[1772430183898,9.12397879,1978.7,1978.0,0.00153886]
[1772430184099,6.39741698,1978.6,1978.0,0.00153886]
[1772430184609,1.46310601,1978.5,1978.0,0.00153886]
[1772430184931,1.46310601,1978.5,1977.4,7.31530685]
[1772430184932,7.86052299,1978.5,1977.4,7.31530685]
[1772430185625,7.66106437,1978.4,1977.4,7.31530685]
[1772430185821,1.46310601,1978.3,1977.4,7.31533459]
[1772430186326,7.86052299,1978.3,1977.4,6.05105677]
[1772430186527,1.46310601,1978.1,1977.1,7.31548569]
[1772430187735,1.26390293,1978.0,1977.1,7.31548569]
[1772430188033,7.66131991,1978.0,1977.1,1.2644631]
[1772430189106,7.66131991,1978.0,1977.0,1.46464487]
[1772430189107,1.46310601,1977.9,1977.0,1.26607642]
[1772430189425,7.66131991,1978.0,1977.0,7.31713319]
[1772430190004,7.66131991,1978.0,1977.0,0.00153886]
[1772430190005,7.86052299,1977.7,1977.0,0.00153886]
[1772430190737,6.39741698,1977.7,1977.0,0.00153886]
[1772430192153,1.26415857,1977.6,1977.0,0.00153886]
[1772430192655,6.39741698,1977.5,1977.0,0.00153886]
[1772430193023,1.26415857,1977.6,1977.0,0.00153886]
[1772430193228,2.918,1978.1,1977.0,0.00153886]
[1772430193229,6.39741698,1978.7,1977.2,7.51416278]
[1772430193429,1.46310601,1978.5,1977.4,7.51416278]
[1772430193918,5.05640129,1978.4,1977.4,7.51416278]
[1772430194114,7.66454156,1978.1,1977.2,4.10041432]
[1772430194519,11.25783684,1978.0,1977.1,7.42085101]
[1772430194721,6.20143555,1978.0,1977.1,7.42085101]
[1772430195349,12.72094285,1977.9,1977.0,1.26604026]
[1772430195533,6.20143555,1977.8,1977.0,1.26604026]
[1772430196318,1.26409465,1977.7,1977.1,0.001]
[1772430198252,1.2642225,1977.5,1977.1,0.001]
[1772430198616,6.32061018,1977.6,1977.1,0.001]
[1772430198838,5.05640129,1977.5,1977.1,0.001]
[1772430199446,10.99137821,1977.5,1977.1,0.001]
[1772430200454,1.26428643,1977.4,1977.1,0.001]
[1772430204561,5.05640129,1977.3,1977.1,0.001]
[1772430206656,6.31824843,1977.3,1977.1,0.001]
[1772430208360,5.93497692,1977.1,1976.3,7.2809176]
[1772430208537,10.12249585,1977.1,1976.3,7.2809176]
[1772430208741,4.18751893,1977.1,1976.3,7.2809176]
[1772430209254,1.26451893,1977.1,1976.3,7.2809176]
[1772430209967,5.05387387,1977.0,1976.3,7.2809176]
[1772430210371,5.05387387,1977.0,1976.3,6.01593733]
[1772430210372,5.93497692,1976.9,1976.3,6.01593733]
[1772430210658,1.26467017,1976.8,1976.3,6.01593733]
[1772430210860,1.26467017,1976.8,1976.3,0.001]
[1772430211228,5.05387387,1976.7,1976.3,0.001]
[1772430212275,5.05387387,1976.6,1976.3,0.001]
[1772430214454,6.31868856,1976.6,1976.3,0.001]
[1772430214984,5.05387387,1976.6,1976.3,0.001]
[1772430216560,6.31867794,1976.6,1976.3,0.001]
[1772430216768,5.05387387,1976.5,1976.3,0.001]
[1772430217973,6.31878715,1976.5,1976.3,0.001]
[1772430220142,12.25376407,1976.5,1976.3,0.001]
[1772430220378,5.93497692,1976.4,1976.0,0.00153886]
[1772430220744,5.05387387,1976.3,1976.0,0.00153886]
[1772430221144,5.05387387,1976.2,1976.0,0.00153886]
[1772430223893,5.05387387,1976.1,1976.0,0.00153886]
[1772430224448,7.19955187,1977.0,1976.1,6.01493733]
[1772430224747,7.19955187,1977.0,1976.3,6.01493733]
[1772430225147,5.93497692,1976.8,1976.3,6.01493733]
[1772430225543,0.002,1976.6,1976.3,6.01493733]
[1772430227179,0.002,1976.6,1976.3,7.27989937]
[1772430227880,6.05665379,1977.0,1976.4,5.93782685]
[1772430228060,2.935,1977.1,1976.6,5.93782685]
[1772430228769,10.25510428,1977.2,1976.6,5.93782685]
[1772430229378,10.25510428,1977.2,1976.7,7.202561]
[1772430229675,10.25510428,1977.2,1976.7,5.93782685]
[1772430231376,6.05665379,1977.2,1976.7,7.20254518]
[1772430231765,6.05665379,1977.2,1976.4,7.20275297]
[1772430231766,7.32108647,1977.2,1976.4,7.20275297]
[1772430231955,7.32108647,1977.2,1976.5,5.93782685]
[1772430233484,7.32108647,1977.2,1976.5,7.20262677]
[1772430240397,7.32108647,1977.2,1976.6,5.93882685]
[1772430240573,6.05865379,1977.1,1976.6,5.93882685]
[1772430241271,6.05865379,1977.1,1976.6,0.001]
[1772430241499,6.05865379,1977.1,1976.6,5.93882685]
[1772430241794,0.002,1977.1,1976.8,5.93782685]
[1772430244089,6.05665379,1977.7,1977.1,5.93782685]
[1772430244288,7.32077271,1977.7,1977.1,5.93782685]
[1772430244495,7.32077271,1977.7,1976.8,3.31321257]
[1772430244496,6.05665379,1977.5,1976.9,5.93782685]
[1772430246102,6.05665379,1977.5,1977.0,7.20236908]
[1772430246607,7.32088669,1977.5,1977.0,7.20236908]
[1772430246807,6.05665379,1977.5,1977.0,7.20236908]
[1772430247220,1.26422695,1977.5,1977.0,5.93782685]
[1772430247383,0.1561732,1980.3,1977.7,0.85297251]
[1772430247581,0.02525776,1980.3,1979.8,2.04857525]
[1772430247780,0.00153886,1980.3,1980.2,2.04857525]
[1772430248011,4.26517543,1980.2,1979.9,0.85811602]
[1772430248236,0.819,1980.8,1980.0,7.20045311]
[1772430248530,2.08112271,1980.8,1980.0,5.93782685]
[1772430248678,0.819,1980.8,1980.0,5.93782685]
[1772430248883,0.00153886,1981.0,1980.0,5.93782685]
[1772430249100,0.00153886,1981.0,1980.2,5.93782685]
[1772430249496,3.31210813,1981.0,1980.2,5.93782685]
[1772430249694,3.31210813,1981.0,1979.9,1.26268104]
[1772430249695,5.00780009,1981.0,1979.9,7.20050715]
[1772430249902,1.69569196,1980.9,1979.9,7.20050715]
[1772430250091,1.26218003,1980.7,1979.9,5.93782685]
[1772430250285,2.94,1980.8,1979.9,7.20050755]
[1772430250286,2.939,1980.8,1979.9,7.20050755]
[1772430250707,2.939,1980.8,1980.0,5.93782685]
[1772430251407,2.937,1980.9,1980.0,5.93782685]
[1772430251608,0.00153886,1981.0,1980.0,5.93782685]
[1772430251810,0.00153886,1981.0,1980.2,5.93782685]
[1772430251811,1.87953886,1981.0,1980.2,5.93782685]
[1772430252122,1.87953886,1981.0,1980.3,1.26243498]
[1772430252300,1.87953886,1981.0,1980.4,5.93782685]
[1772430253816,1.87953886,1981.0,1980.2,1.26245345]
[1772430253817,3.14152899,1981.0,1980.2,7.20032306]
[1772430254023,0.00153886,1982.0,1980.9,5.93782685]
[1772430254185,0.00153886,1982.0,1980.2,1.26249621]
[1772430254186,0.1561732,1984.2,1983.0,6.40826687]
[1772430254389,1.69723082,1984.9,1983.4,6.59512311]
[1772430254690,1.69723082,1984.8,1983.6,6.40826687]
[1772430254885,1.26099842,1985.0,1983.6,6.40826687]
[1772430254886,0.00153886,1985.0,1983.6,6.40826687]
[1772430255197,0.719,1984.9,1983.8,4.40826687]
[1772430255397,3.011,1984.8,1983.8,4.40826687]
[1772430255595,3.69723082,1984.7,1983.1,6.40826687]
[1772430255917,3.69723082,1984.5,1983.2,6.44586687]
[1772430256221,1.25957275,1984.8,1983.3,6.40826687]
[1772430256431,3.69723082,1984.5,1983.3,0.0376]
[1772430256596,2.04857525,1984.1,1983.3,0.0376]
[1772430256782,2.358,1984.0,1983.0,0.00153886]
[1772430256987,4.0971505,1984.0,1983.0,0.03913886]
[1772430257186,2.9,1983.9,1982.5,6.40826687]
[1772430257598,3.76276682,1983.8,1982.1,5.88180031]
[1772430257794,3.76276682,1983.8,1982.0,0.26501042]
[1772430258097,3.69723082,1983.1,1982.0,0.26501042]
[1772430258317,1.26071608,1983.0,1982.2,5.88180031]
[1772430258489,1.26071608,1983.0,1982.0,0.26501042]
[1772430258490,3.69471608,1983.0,1982.4,5.88180031]
[1772430258690,1.26071608,1983.0,1982.4,5.88180031]
[1772430258990,3.012,1983.1,1982.6,5.88180031]
[1772430259417,3.011,1983.1,1982.6,5.88180031]
[1772430260194,1.26046183,1983.5,1982.6,5.88180031]
[1772430260502,3.01,1983.4,1982.6,5.88180031]
[1772430261214,1.26046183,1983.5,1982.6,7.14276446]
[1772430261418,3.008,1983.4,1982.6,7.14276446]
[1772430261585,1.26046183,1983.5,1982.9,5.88180031]
[1772430261586,3.007,1983.3,1982.9,5.88180031]
[1772430261792,1.26046183,1983.5,1982.9,5.88180031]
[1772430262217,3.007,1983.8,1983.2,5.88180031]
[1772430262387,3.007,1983.8,1983.2,7.14238138]
[1772430262592,3.007,1983.8,1983.2,7.1423789]
[1772430262794,3.007,1983.9,1983.5,5.88180031]
[1772430263125,0.00153886,1984.0,1983.5,5.88180031]
[1772430263631,1.26162116,1984.0,1983.5,5.88180031]
[1772430263925,1.26162116,1984.0,1983.1,5.88180031]
[1772430264126,3.007,1983.9,1983.1,7.93037556]
[1772430264424,1.26020768,1983.8,1982.7,7.14269482]
[1772430264830,1.26020768,1983.8,1982.7,5.88180031]
[1772430265219,3.30878293,1983.8,1982.7,5.88180031]
[1772430265829,2.04857525,1983.6,1982.7,5.88180031]
[1772430266208,2.04857525,1983.4,1982.3,5.88180031]
[1772430266434,2.04857525,1983.4,1982.3,7.14295828]
[1772430266631,1.26039828,1983.5,1982.3,5.88180031]
[1772430266838,2.13826854,1983.4,1982.3,5.88180031]
[1772430267010,4.9576291,1983.5,1982.3,5.88180031]
[1772430267414,4.9576291,1983.5,1982.0,0.00153886]
[1772430267415,3.69723082,1983.3,1982.0,0.00153886]
[1772430267745,2.13826854,1983.2,1982.0,0.00153886]
[1772430268248,3.69723082,1983.1,1982.0,0.00153886]
[1772430268431,1.26071608,1983.0,1982.0,5.88333917]
[1772430268626,1.26071608,1983.0,1982.3,0.001]
[1772430269149,7.09521544,1983.0,1982.3,0.001]
[1772430269440,3.69623082,1982.9,1982.0,0.00153886]
[1772430270544,4.26284325,1982.8,1982.0,0.00153886]
[1772430270870,6.40111179,1982.8,1982.0,0.00153886]
[1772430271059,10.09734261,1982.8,1982.0,0.00153886]
[1772430271213,3.69623082,1982.7,1982.0,0.00153886]
[1772430272545,3.69623082,1982.5,1982.0,0.00153886]
[1772430272750,3.69623082,1982.5,1981.0,5.04938917]
[1772430272751,3.69623082,1982.4,1981.0,0.00153886]
[1772430272922,3.69623082,1982.4,1981.0,7.14530682]
[1772430273237,3.69623082,1982.4,1981.0,5.88333917]
[1772430274338,3.69623082,1982.1,1981.0,0.00153886]
[1772430274657,7.95558298,1982.0,1981.0,0.00153886]
[1772430274941,2.997,1981.9,1981.2,5.88180031]
[1772430277220,4.25845454,1981.9,1981.3,1.2617978]
[1772430277428,4.25845454,1981.9,1981.3,7.14359811]
[1772430277627,1.2612249,1982.2,1981.3,7.14359811]
[1772430277835,1.2612249,1982.2,1981.4,5.88180031]
[1772430277836,2.992,1982.1,1981.4,5.88180031]
[1772430278217,2.993,1982.0,1981.5,5.88180031]
[1772430278547,1.26090684,1982.7,1981.5,5.88180031]
[1772430278842,5.04362737,1982.9,1981.5,5.88180031]
[1772430278843,5.0432564,1982.9,1981.5,5.88180031]
[1772430279140,1.26231852,1983.0,1981.6,1.26160678]
[1772430279141,2.992,1982.6,1981.6,1.26160678]
[1772430279313,2.992,1982.6,1981.7,5.88180031]
[1772430279745,2.99253886,1983.0,1982.1,5.88180031]
[1772430280046,0.002,1983.4,1982.4,2.13826854]
[1772430280230,0.002,1983.4,1982.5,5.88180031]
[1772430281113,2.994,1983.3,1982.6,1.26097044]
[1772430281314,0.002,1983.4,1982.7,5.88180031]
[1772430281546,2.996,1983.4,1982.7,5.88180031]
[1772430281915,4.25647184,1983.4,1982.7,5.88180031]
[1772430283640,4.25647184,1983.4,1982.8,1.26084325]
[1772430283641,2.99,1983.3,1982.8,1.26084325]
[1772430283841,2.99,1983.3,1982.5,1.26100689]
[1772430284144,2.99,1983.3,1982.4,5.88180031]
[1772430284349,2.99,1983.3,1982.3,1.26112149]
[1772430285145,2.99,1983.3,1982.3,7.1429218]
[1772430285316,2.99,1983.3,1982.4,5.88180031]
[1772430285745,2.99,1983.3,1982.5,7.14283435]
[1772430285931,4.25053242,1983.3,1982.5,7.14283435]
[1772430286443,4.25053242,1983.3,1982.3,5.88180031]
[1772430286846,6.17983946,1983.2,1982.0,1.26287421]
[1772430287044,5.95286017,1983.0,1982.0,0.00153886]
[1772430287224,5.95286017,1983.0,1982.0,1.26288795]
[1772430287631,5.95286017,1983.0,1982.0,1.26288461]
[1772430287861,0.002,1983.4,1982.0,5.80687303]
[1772430288153,0.002,1983.4,1982.7,5.80533417]
[1772430288323,2.90047048,1983.4,1982.7,5.80533417]
[1772430288526,2.90046384,1983.4,1982.7,5.80533417]
[1772430289037,1.64,1983.4,1982.7,5.80533417]
[1772430289224,2.9004664,1983.4,1982.7,5.80533417]
[1772430289429,2.9004664,1983.4,1982.3,5.80533417]
[1772430289634,2.9004664,1983.4,1982.4,8.76940742]
[1772430289842,2.9004664,1983.4,1982.4,5.80533417]
[1772430290042,2.9004664,1983.4,1982.5,1.26103404]
[1772430290357,2.9004664,1983.4,1982.5,7.06636821]
[1772430290863,1.2624761,1983.4,1982.5,7.06636821]
[1772430291060,2.991,1983.3,1982.5,7.06636821]
[1772430292149,4.25155572,1983.3,1982.5,7.06636821]
[1772430295047,2.983,1983.2,1982.7,5.80533417]
[1772430295258,0.46187542,1983.2,1982.7,5.80533417]
[1772430295459,5.95286017,1983.1,1982.2,2.33560243]
[1772430295770,5.95286017,1982.9,1982.0,0.00153886]
[1772430296140,1.26103404,1982.5,1981.3,7.06713197]
[1772430296366,2.985,1982.4,1981.3,7.06713197]
[1772430297638,2.985,1982.4,1982.2,0.001]
[1772430297835,2.985,1982.4,1981.3,7.06713197]
[1772430298283,1.26116127,1982.3,1981.3,7.06713197]
[1772430299447,2.985,1982.4,1981.5,5.80533417]
[1772430299653,13.97699329,1982.9,1981.5,5.80533417]
[1772430300349,5.95286017,1982.8,1981.6,1.26160678]
[1772430300550,8.02413312,1982.9,1981.3,1.26174173]
[1772430300551,7.4798504,1982.4,1981.3,1.26174173]
[1772430300898,8.93186017,1982.3,1981.3,1.26174173]
[1772430301171,5.95286017,1982.2,1981.3,1.26174173]
[1772430301543,5.95286017,1982.2,1981.2,1.26181454]
[1772430301742,5.95286017,1982.2,1981.2,5.80533417]
[1772430301947,2.979,1982.3,1981.2,5.80533417]
[1772430302155,2.979,1982.3,1981.4,7.3323244]
[1772430302481,4.24017468,1982.3,1981.4,7.0670192]
[1772430302686,10.19303485,1982.3,1981.4,1.26168503]
[1772430302887,5.95286017,1982.2,1981.2,1.26186149]
[1772430303053,5.95286017,1982.2,1981.1,1.26287992]
[1772430304500,4.2401967,1982.3,1981.1,7.06821409]
[1772430304694,4.24017183,1982.3,1981.4,5.80533417]
[1772430304896,2.979,1982.3,1981.4,5.80533417]
[1772430305065,7.21389569,1982.5,1981.4,5.80533417]
[1772430306697,7.21389569,1982.5,1981.5,1.26167045]
[1772430307972,5.95286017,1982.3,1981.2,1.26186149]
[1772430308176,5.95286017,1982.3,1981.2,7.06719566]
[1772430308895,1.2612249,1982.2,1981.2,7.06719566]
[1772430310535,2.71753156,1982.2,1981.2,7.06719566]
[1772430310682,2.71753156,1982.2,1981.3,0.001]
[1772430311081,2.71953156,1982.2,1981.3,0.001]
[1772430311401,5.95286017,1982.1,1981.3,0.001]
[1772430311722,7.40916683,1982.0,1981.3,0.001]
[1772430312004,7.40916683,1982.0,1981.1,0.001]
[1772430312005,7.40916683,1981.6,1981.1,0.001]
[1772430312804,5.95286017,1981.6,1981.1,0.001]
[1772430312987,5.95286017,1981.9,1981.1,0.001]
[1772430313194,7.21428561,1981.9,1981.1,0.001]
[1772430314072,1.45630666,1981.6,1981.1,0.001]
[1772430314513,5.95286017,1981.7,1981.1,0.001]
[1772430315306,2.71791344,1981.6,1981.1,0.001]
[1772430316601,11.66608386,1981.6,1981.1,0.001]
[1772430317419,10.20978803,1981.6,1981.1,0.001]
[1772430317611,11.66609469,1981.6,1981.1,0.001]
[1772430318082,5.95288966,1981.5,1981.1,0.001]
[1772430318284,2.962,1981.6,1981.1,0.001]
[1772430318489,4.22361142,1981.6,1981.1,0.001]
[1772430319579,1.45630666,1981.5,1981.1,0.001]
[1772430321213,1.45630666,1981.3,1980.7,6.26370666]
[1772430321382,1.45630666,1980.9,1980.2,7.52620539]
[1772430322617,1.45630666,1980.5,1980.0,0.00153886]
[1772430322986,2.962,1980.6,1980.0,1.26415412]
[1772430323501,2.962,1980.6,1980.0,0.00153886]
[1772430323812,5.68057514,1980.6,1980.0,0.00153886]
[1772430324612,11.6334648,1980.6,1980.0,0.00153886]
[1772430324818,8.91488966,1980.6,1980.0,0.00153886]
[1772430324983,8.91488966,1980.6,1980.1,0.001]
[1772430326305,2.962,1980.6,1980.1,0.001]
[1772430327414,4.22426063,1980.6,1980.1,0.001]
[1772430327718,5.68056729,1980.6,1980.1,0.001]
[1772430328118,7.40919632,1980.5,1980.1,0.001]
[1772430328285,7.40919632,1980.5,1980.0,0.00253886]
[1772430328816,1.45630666,1980.3,1980.0,0.00253886]
[1772430329117,7.40919632,1980.3,1980.0,0.00253886]
[1772430330113,1.26249873,1980.2,1980.0,0.00253886]
[1772430330512,4.22349873,1980.2,1980.0,0.00253886]
[1772430330717,2.961,1980.2,1980.0,0.00253886]
[1772430331032,2.961,1980.2,1979.1,2.817]